[Event "7th Sharjah Masters 2024"]
[Site "Sharjah"]
[Date "2024.05.15"]
[Round "2.24"]
[White "Adhiban, B.."]
[Black "Sadhwani, Raunak"]
[Result "1/2-1/2"]
[ECO "C01"]
[WhiteElo "2523"]
[BlackElo "2654"]
[Annotator "TA"]
[PlyCount "24"]
[EventDate "2024.05.13"]
[EventType "swiss"]
[EventCountry "UAE"]
[SourceTitle "playchess.com"]
[Source "ChessBase"]
[SourceQuality "1"]
[TimeControl "5400+30"]

{[%evp 13,24,14,31,16,25,28,21,35,32,31,34,25,29]} 1. e4 {[%emt 0:00:03]} e6 {[%emt 0:00:41]} 2. d4 {[%emt 0:00:14]} d5 {[%emt 0:00:04]} 3. exd5 {[%emt 0:01:45]} exd5 {[%emt 0:00:07]} 4. Nf3 {[%emt 1:30:28]} Bd6 {[%emt 0:03:06]} 5. Bd3 {[%emt 0:00:00]} Nf6 {[%emt 0:02:44]} 6. Qe2+ {[%emt 0:00:00]} Qe7 {[%emt 0:01:02]} 7. Qxe7+ {[%emt 0:00:00]} Kxe7 {[%emt 0:01:24]} 8. O-O {[%emt 0:00:00]} Re8 {[%emt 0:01:25]} 9. Re1+ {[%emt 0:00:00]} Kf8 {[%emt 0:01:38]} 10. Rxe8+ {[%emt 0:00:00]} Kxe8 {[%emt 0:00:13]} 11. Nc3 {[%emt 0:00:00]} c6 {[%emt 0:02:32]} 12. Bg5 {[%emt 0:00:00]} Nbd7 {[%emt 0:00:33] White took control after the opening.   Weighted Error Value: White=0.00 (flawless) /Black=0.03 (flawless) .  OK:         	White=3     	Black=1      Best:        	---       	Black=1} 1/2-1/2

[Event "7th Sharjah Masters 2024"]
[Site "Sharjah"]
[Date "2024.05.15"]
[Round "2.25"]
[White "Ter-Sahakyan, Samvel"]
[Black "Nikitenko, Mihail"]
[Result "1-0"]
[ECO "E07"]
[WhiteElo "2652"]
[BlackElo "2529"]
[Annotator "TA"]
[PlyCount "89"]
[EventDate "2024.05.13"]
[EventType "swiss"]
[EventCountry "UAE"]
[SourceTitle "playchess.com"]
[Source "ChessBase"]
[SourceQuality "1"]
[TimeControl "5400+30"]

{[%evp 20,89,53,28,58,48,56,38,85,87,130,97,84,93,83,77,127,116,345,347,389,399,484,255,254,258,270,275,270,272,283,246,256,251,250,250,251,256,253,250,277,279,292,278,300,289,294,271,246,246,286,261,497,473,490,489,556,488,539,535,576,505,752,752,970,948,982,945,1052,883,1475,1312]} 1. d4 {[%emt 0:00:03]} e6 {[%emt 0:00:07]} 2. c4 {[%emt 0:02:00]} Nf6 {[%emt 0:00:04]} 3. Nf3 {[%emt 0:00:18]} d5 {[%emt 0:00:05]} 4. g3 {[%emt 0:00:06]} Be7 {[%emt 0:00:04]} 5. Bg2 {[%emt 0:00:07]} O-O {[%emt 0:00:05]} 6. O-O {[%emt 0:00:07]} c6 {[%emt 0:00:03]} 7. Nc3 {[%emt 0:00:33]} Nbd7 {[%emt 0:00:42]} 8. Qd3 {[%emt 0:01:25]} b6 {[%emt 0:00:51]} 9. e4 {[%emt 0:00:21]} Ba6 {[%emt 0:01:25]} 10. b3 {[%emt 0:00:55]} Rc8 {[%emt 0:03:14]} 11. Rd1 {[%emt 0:22:40]} c5 {[%emt 0:04:12]} 12. exd5 {[%emt 0:01:34]} exd5 {[%emt 0:00:32]} 13. Nb5 {[%emt 0:01:06]} cxd4 {[%emt 0:07:02]} (13... Bxb5 $14 14. cxb5 Bd6) 14. Nfxd4 $16 {[%emt 0:01:16]} (14. Nxa7 dxc4 15. bxc4 Rxc4 $11) (14. Qxd4 Bxb5 15. cxb5 Ne4 $15) 14... Nc5 {[%emt 0:03:14]} 15. Qc2 {[%emt 0:08:23] White has more active pieces.} Qd7 {[%emt 0:00:26]} 16. Bb2 {[%emt 0:01:16]} Nce4 {[%emt 0:04:46] [#]} 17. Nc3 $1 {[%emt 0:07:06] Threatens to win with Nxd5.} Nxc3 {[%emt 0:02:14]} (17... Bb7 $142) 18. Bxc3 {[%emt 0:00:24]} Qc7 $2 {[%emt 0:06:22] Black cannot hold the game after this.} (18... Ne4 $16 {was necessary.}) 19. Nf5 $18 {[%emt 0:05:51]} (19. Bxd5 $2 Nxd5 20. Bb2 Nf6 $19) 19... dxc4 {[%emt 0:00:15]} 20. Qd2 {[%emt 0:01:03]} Kh8 {[%emt 0:12:02]} 21. Nxe7 {[%emt 0:05:54]} ({Weaker is} 21. Qg5 Rg8 22. Rac1 (22. Nxe7 Qxe7 23. Re1 Qf8 $16) 22... Rcf8 $18) (21. Re1 $142 cxb3 22. Rac1 (22. Rxe7 Qxc3 23. Qxc3 Rxc3 $11) (22. Qg5 Rg8 $18)) 21... Qxe7 {[%emt 0:00:04]} 22. Bb4 {[%emt 0:00:09] A strong pair of Bishops.} Qe8 {[%emt 0:00:49][%cal Oc4c3]} 23. Bxf8 {[%emt 0:01:01]} Qxf8 {[%emt 0:00:03]} 24. Rac1 {[%emt 0:00:26]} h6 {[%emt 0:00:51]} 25. Qd6 {[%emt 0:02:54]} Qxd6 {[%emt 0:19:06]} 26. Rxd6 {[%emt 0:00:33]} cxb3 {[%emt 0:00:03]} 27. Rxc8+ {[%emt 0:01:50]} Bxc8 {[%emt 0:01:42]} 28. axb3 {[%emt 0:00:07][%cal Ba2b3,Bb3b4,Bb4b5][%mdl 4128] [#] Endgame. Black must now prevent Rd8+. KRB-KBN} Be6 {[%emt 0:04:29]} 29. b4 {[%emt 0:00:46]} g6 {[%emt 0:00:48]} 30. b5 {[%emt 0:07:50]} Kg7 {[%emt 0:00:04]} 31. Rd4 {[%emt 0:01:17]} Kf8 {[%emt 0:05:09]} 32. Bc6 {[%emt 0:01:38]} Ke7 {[%emt 0:00:06]} 33. Ra4 {[%emt 0:00:52]} Kd6 {[%emt 0:00:04]} 34. Rxa7 {[%emt 0:00:21]} h5 {[%emt 0:00:29]} 35. f3 {[%emt 0:01:20]} g5 $2 {[%emt 0:05:29]} (35... Nd7 36. Kf2 (36. Rb7 Ne5 $18) 36... Ne5) 36. h4 {[%emt 0:01:30] White is clearly winning.} gxh4 {[%emt 0:00:36]} 37. gxh4 {[%emt 0:00:04]} Ng8 {[%emt 0:00:03]} 38. Kf2 {[%emt 0:01:43]} Nh6 {[%emt 0:00:45]} 39. Be8 {[%emt 0:01:02]} Bd5 {[%emt 0:00:04]} 40. Bd7 {[%emt 0:02:36]} Kc5 {[%emt 0:02:48]} 41. Ke3 {[%emt 0:01:23]} f6 {[%emt 0:00:15]} 42. Kf4 {[%emt 0:00:40]} Nf7 {[%emt 0:00:04]} 43. Be8 {[%emt 0:00:57]} Ne5 {[%emt 0:00:07]} 44. Bxh5 {[%emt 0:00:31]} Kxb5 {[%emt 0:00:04]} 45. Be8+ {[%emt 0:00:19] Weighted Error Value: White=0.19 (very precise) /Black=0.42.  Loses game:     	---       	Black=1      Mistake:       	White=1     	Black=3      Inaccurate:     	---       	Black=2      OK:         	White=14    	Black=6      Best:        	White=4     	---        Strong:       	White=1     	---} 1-0

[Event "7th Sharjah Masters 2024"]
[Site "Sharjah"]
[Date "2024.05.15"]
[Round "2.26"]
[White "Sargsyan, Shant"]
[Black "Sankalp Gupta"]
[Result "0-1"]
[ECO "C42"]
[WhiteElo "2637"]
[BlackElo "2532"]
[Annotator "TA"]
[PlyCount "88"]
[EventDate "2024.05.13"]
[EventType "swiss"]
[EventCountry "UAE"]
[SourceTitle "playchess.com"]
[Source "ChessBase"]
[SourceQuality "1"]
[TimeControl "5400+30"]

{[%evp 13,88,20,29,24,26,0,0,0,0,0,0,0,0,0,0,0,0,0,0,0,0,0,0,-27,-20,-22,-16,-14,-24,-18,-22,-37,-25,-22,0,0,0,-31,-30,-56,-54,-79,-78,-77,-81,-75,-77,-91,-97,-82,-100,-90,-39,-558,-558,-6343,-6327,-6187,-6143,-29948,-12850,-29970,-29973,-29972,-29974,-29974,-29975,-29975,-29976,-29976,-29977,-29978,-29979,-29979,-29980,-29981,-29982]} 1. e4 {[%emt 0:01:07]} e5 {[%emt 0:01:12]} 2. Nf3 {[%emt 0:00:18]} Nf6 {[%emt 0:00:02]} 3. Nxe5 {[%emt 0:00:35]} d6 {[%emt 0:00:03]} 4. Nf3 {[%emt 0:00:10]} Nxe4 {[%emt 0:00:05]} 5. c4 {[%emt 0:00:15]} Be7 {[%emt 0:03:56]} 6. d4 {[%emt 0:01:01]} O-O {[%emt 0:07:22]} 7. Bd3 {[%emt 0:01:07]} Ng5 {[%emt 0:12:25]} 8. Nxg5 {[%emt 0:08:07]} Bxg5 {[%emt 0:00:20]} 9. Qh5 {[%emt 0:00:46][%csl Gd3][%cal Rh5h7]} Re8+ {[%emt 0:02:23]} 10. Kd1 {[%emt 0:00:24] The position is equal.} Bxc1 {[%emt 0:26:54]} 11. Qxh7+ {[%emt 0:02:30]} Kf8 {[%emt 0:00:03]} 12. Kxc1 {[%emt 0:46:21]} Qg5+ {[%emt 0:00:02]} 13. Nd2 {[%emt 0:00:44] Strongly threatening Qh8+.} Nc6 $1 {[%emt 0:00:57] Active counter play!} 14. f4 $1 {[%emt 0:01:17]} Qxf4 {[%emt 0:04:26][%cal Oe8e3] Hoping for ...Re3!} 15. Qh8+ {[%emt 0:03:32]} Ke7 {[%emt 0:00:01]} 16. Qxg7 {[%emt 0:00:17] And now Rf1 would win.} Qxd4 {[%emt 0:01:04]} 17. Qxd4 {[%emt 0:04:05]} Nxd4 {[%emt 0:00:02]} 18. Nb3 {[%emt 0:00:07]} Nc6 {[%emt 0:03:59]} 19. Kd2 {[%emt 0:00:19]} Be6 {[%emt 0:00:12]} 20. Rae1 {[%emt 0:01:39]} Rh8 {[%emt 0:01:25]} 21. Kc3 {[%emt 0:01:03]} Rag8 {[%emt 0:01:22]} 22. Be4 {[%emt 0:00:15]} Rg4 {[%emt 0:01:42]} 23. Nd2 {[%emt 0:01:29]} Ne5 {[%emt 0:02:25]} 24. b3 {[%emt 0:01:47]} ({Much weaker is} 24. Bxb7 c6 (24... Nxc4 25. Bf3 $11) (24... Bxc4 $2 25. Rxe5+ dxe5 26. Nxc4 $18) 25. g3 Rb8 (25... Nxc4 26. Rxe6+ fxe6 27. Nxc4 $11) 26. Rxe5 (26. Ba6 $2 Rb6 $19) 26... dxe5 27. Bxc6 Rc8 $17) 24... b6 {[%emt 0:05:48]} 25. g3 {[%emt 0:03:18]} f5 {[%emt 0:01:00]} 26. Bf3 {[%emt 0:00:11]} Rg7 {[%emt 0:00:08]} 27. Re2 {[%emt 0:00:55]} Rgh7 $1 {[%emt 0:02:22]} 28. Bd5 {[%emt 0:08:05]} Bxd5 {[%emt 0:03:35]} 29. cxd5 {[%emt 0:00:01]} Rh3 {[%emt 0:00:27]} 30. Rf1 {[%emt 0:11:56]} Rxh2 {[%emt 0:01:05]} 31. Rxh2 {[%emt 0:00:04]} Rxh2 {[%emt 0:00:04]} 32. Rxf5 $17 {[%emt 0:00:04][%mdl 4096] Endgame. KRN-KRN} Re2 {[%emt 0:04:23]} (32... Rg2 $17 33. Ne4 Re2 (33... Rxa2 34. Rh5 $17)) 33. Rg5 $2 {[%emt 0:02:35][%mdl 8192] [#] Now White is beyond hope.} (33. Nc4 $1 $15) 33... Rxd2 $1 $19 {[%emt 0:02:58][%mdl 512]} 34. Rxe5+ {[%emt 0:00:03]} (34. Rg7+ Kf6) 34... dxe5 {[%emt 0:00:04]} 35. Kxd2 {[%emt 0:00:02] KP-KP} Kd6 {[%emt 0:00:01]} 36. b4 {[%emt 0:01:14] [#]} a6 $1 {[%emt 0:01:04]} ({Weaker is} 36... Kxd5 37. b5 $11) 37. a4 {[%emt 0:00:39]} Kxd5 {[%emt 0:02:50] Black mates.} 38. b5 {[%emt 0:00:36]} axb5 {[%emt 0:00:06]} 39. axb5 {[%emt 0:00:03]} c5 {[%emt 0:00:40]} 40. bxc6 {[%emt 0:00:52]} Kxc6 {[%emt 0:00:02] KPP-KP} 41. g4 {[%emt 0:00:36]} Kd5 {[%emt 0:01:26]} 42. Kd3 {[%emt 0:00:07]} b5 {[%emt 0:01:01]} 43. g5 {[%emt 0:00:52]} Ke6 {[%emt 0:01:33]} 44. Ke4 {[%emt 0:00:31]} b4 {[%emt 0:09:31] Weighted Error Value: White=0.72/Black=0.02 (flawless) .  Loses game:     	White=1     	---        Mistake:       	---       	Black=1      Inaccurate:     	White=5     	---        OK:         	White=8     	Black=7      Best:        	White=4     	Black=4      Strong:       	White=1     	Black=2      Brilliant:      	---       	Black=1} 0-1

[Event "7th Sharjah Masters 2024"]
[Site "Sharjah"]
[Date "2024.05.15"]
[Round "2.27"]
[White "Gavrilescu, David"]
[Black "Puranik, Abhimanyu"]
[Result "0-1"]
[ECO "C45"]
[WhiteElo "2540"]
[BlackElo "2631"]
[Annotator "TA"]
[PlyCount "20"]
[EventDate "2024.05.13"]
[EventType "swiss"]
[EventCountry "UAE"]
[SourceTitle "playchess.com"]
[Source "ChessBase"]
[SourceQuality "1"]
[TimeControl "5400+30"]

{[%evp 14,20,48,18,27,7,24,13,42]} 1. e4 {[%emt 0:00:16]} e5 {[%emt 0:00:10]} 2. Nf3 {[%emt 0:00:22]} Nc6 {[%emt 0:00:05]} 3. d4 {[%emt 0:00:45]} exd4 4. Nxd4 {[%emt 0:00:07]} Bc5 {[%emt 0:01:15]} 5. Nb3 {[%emt 0:00:27]} Bb6 {[%emt 0:00:06]} 6. Nc3 {[%emt 0:00:36]} Qf6 {[%emt 0:00:25]} 7. Qe2 {[%emt 0:01:03]} Nge7 {[%emt 0:00:27]} 8. h4 {[%emt 0:01:23]} d6 {[%emt 0:01:14]} 9. Bg5 {[%emt 0:01:06]} Qe6 {[%emt 0:00:06]} 10. O-O-O {[%emt 0:02:21]} h6 {[%emt 0:01:08][%mdl 32768] A rather calm draw.   Weighted Error Value: White=0.22 (precise) /Black=0.10 (very precise) .  Inaccurate:     	---       	Black=1      Best:        	White=1     	---       . Loss on time!?} 0-1

[Event "7th Sharjah Masters 2024"]
[Site "Sharjah"]
[Date "2024.05.15"]
[Round "2.28"]
[White "Siddharth, Jagadeesh"]
[Black "Banusz, Tamas"]
[Result "1-0"]
[ECO "C54"]
[WhiteElo "2512"]
[BlackElo "2623"]
[Annotator "TA"]
[PlyCount "53"]
[EventDate "2024.05.13"]
[EventType "swiss"]
[EventCountry "UAE"]
[SourceTitle "playchess.com"]
[Source "ChessBase"]
[SourceQuality "1"]
[TimeControl "5400+30"]

{[%evp 12,53,25,8,30,37,50,42,46,14,28,25,47,51,96,70,70,42,33,52,41,49,59,56,200,52,59,56,70,17,74,72,126,125,124,127,134,125,465,466,730,714,717,710]} 1. e4 {[%emt 0:00:08]} e5 {[%emt 0:00:06]} 2. Nf3 {[%emt 0:00:04]} Nc6 {[%emt 0:00:04]} 3. Bc4 {[%emt 0:00:07]} Nf6 {[%emt 0:00:04]} 4. d3 {[%emt 0:00:05]} Bc5 {[%emt 0:00:06]} 5. Bg5 {[%emt 0:00:08][%cal Bc1g5,Bg5h4,Bh4g3][%mdl 32]} d6 {[%emt 0:00:40]} 6. c3 {[%emt 0:00:05]} h6 {[%emt 0:00:32]} 7. Bh4 {[%emt 0:00:06]} a5 {[%emt 0:00:08]} 8. O-O {[%emt 0:00:09]} Bd7 {[%emt 0:00:31]} 9. Re1 {[%emt 0:04:13]} Ba7 {[%emt 0:00:30] White is slightly better.} 10. d4 {[%emt 0:02:52]} g5 {[%emt 0:14:03][%cal Bg7g5,Bg5g4][%mdl 32]} 11. Bg3 {[%emt 0:00:10]} Qe7 {[%emt 0:00:09]} 12. Na3 {[%emt 0:04:19]} O-O-O {[%emt 0:17:17]} 13. Bd5 {[%emt 0:08:30]} Nh5 {[%emt 0:08:59]} 14. Nc4 {[%emt 0:06:16]} Nxg3 {[%emt 0:02:24]} 15. hxg3 {[%emt 0:01:17]} g4 {[%emt 0:11:57]} 16. Nh4 {[%emt 0:01:53] Bxc6 is the strong threat.} exd4 {[%emt 0:00:17]} 17. Bxc6 $1 {[%emt 0:00:15]} bxc6 {[%emt 0:05:05]} ({Black should try} 17... Bxc6 $14 18. Nxa5 (18. cxd4 Qf6 $11) 18... Bd7) 18. Qa4 {[%emt 0:02:52]} (18. cxd4 $6 Qf6 $16) (18. Nxa5 Qe5 19. b4 (19. Nc4 Qb5 $15) 19... dxc3 $11) (18. Qd3 $18 Kb8 19. Nf5 (19. cxd4 d5 $16) (19. Nxa5 Qe5 $11)) 18... d5 {[%emt 0:08:22]} 19. Qxa5 {[%emt 0:11:54] White wants to mate with Qa6+.} Qc5 {[%emt 0:00:47]} 20. Qa6+ {[%emt 0:00:05]} Kb8 {[%emt 0:00:04]} 21. Ne5 {[%emt 0:00:03] cxd4 would now be deadly.} dxc3 {[%emt 0:12:30]} ({Black should play} 21... Rhe8 22. exd5 (22. Nxf7 Rc8 $11) 22... Qxd5) 22. bxc3 $16 {[%emt 0:01:58][%cal Bb2c3,Bc3c4][%mdl 32] Black must now prevent Nd3.} Bb6 {[%emt 0:01:14] [#]} (22... Qxf2+ 23. Kh2 Qc5 24. Nxd7+ Rxd7 25. Reb1+ Bb6 26. Rb4 $18) 23. Kh2 $1 {[%emt 0:03:10] White is much more active.} (23. Nxf7 $2 Qxf2+ 24. Kh2 Qxf7 $19) 23... Rhe8 {[%emt 0:03:28]} 24. exd5 $40 {[%emt 0:05:17][%mdl 128] Threatening mate with Nxd7+. White attacks with force.} (24. Nxf7 Bc8 25. Qa4 Rd7 26. Nxh6 Rh7 $17 (26... Qxf2 27. Qxc6 Rde7 28. Qxd5 $11) (26... Qxc3 27. Rab1 $11)) 24... Qxd5 {[%emt 0:01:45][%mdl 8192] [#]} (24... Bc8 $16 {is tougher.} 25. Qa4 (25. Nxc6+ Qxc6 $18) 25... Rxe5 26. Rxe5 Rxd5 27. Rxd5 cxd5) 25. c4 $1 $18 {[%emt 0:09:25] White is clearly winning.} Qxe5 {[%emt 0:05:52]} (25... Bc8 $142 26. Qxb6+ cxb6 27. cxd5 Kc7 28. Nxc6 (28. Nxf7 Rxe1 29. Rxe1 Rxd5 $18) 28... Rxe1 29. Rxe1 Rxd5) 26. Rxe5 {[%emt 0:00:31]} Rxe5 {[%emt 0:00:01]} 27. Rb1 {[%emt 0:00:06] Weighted Error Value: White=0.14 (very precise) /Black=0.50.  Loses game:     	---       	Black=1      Mistake:       	White=1     	Black=3      Inaccurate:     	White=2     	Black=2      OK:         	White=7     	Black=4      Best:        	White=1     	Black=3      Strong:       	White=3     	---} 1-0

[Event "7th Sharjah Masters 2024"]
[Site "Sharjah"]
[Date "2024.05.15"]
[Round "2.29"]
[White "Suleymanli, Aydin"]
[Black "Blohberger, Felix"]
[Result "1/2-1/2"]
[ECO "C65"]
[WhiteElo "2621"]
[BlackElo "2506"]
[Annotator "TA"]
[PlyCount "37"]
[EventDate "2024.05.13"]
[EventType "swiss"]
[EventCountry "UAE"]
[SourceTitle "playchess.com"]
[Source "ChessBase"]
[SourceQuality "1"]
[TimeControl "5400+30"]

{[%evp 9,37,14,15,22,31,11,28,0,0,-29,-17,-10,6,0,18,1,0,7,8,0,0,6,6,3,8,-18,-17,-32,-28,-16]} 1. e4 {[%emt 0:00:02]} e5 {[%emt 0:00:06]} 2. Nf3 {[%emt 0:00:04]} Nc6 {[%emt 0:00:05]} 3. Bb5 {[%emt 0:00:06]} Nf6 {[%emt 0:00:06]} 4. d3 {[%emt 0:00:04]} Bc5 {[%emt 0:00:16]} 5. c3 {[%emt 0:00:08]} O-O {[%emt 0:01:19]} 6. O-O {[%emt 0:00:07]} d5 {[%emt 0:00:39]} 7. Nbd2 {[%emt 0:00:30]} Re8 {[%emt 0:02:51]} 8. b4 {[%emt 0:12:39] White has an edge.} Bf8 {[%emt 0:06:08]} 9. Bb2 {[%emt 0:03:07]} a6 {[%emt 0:01:56]} 10. Ba4 {[%emt 0:01:23]} b5 {[%emt 0:07:12]} 11. Bb3 {[%emt 0:00:40]} h6 {[%emt 0:05:26]} 12. a3 {[%emt 0:03:58]} Be6 {[%emt 0:09:09]} 13. Re1 {[%emt 0:01:32]} dxe4 14. dxe4 {[%emt 0:00:37]} Bxb3 15. Qxb3 {[%emt 0:02:22]} a5 {[%emt 0:09:10]} 16. Nf1 {[%emt 0:14:23]} Qd7 {[%emt 0:02:25]} 17. Rad1 {[%emt 0:02:05]} Qe6 {[%emt 0:00:41]} 18. Qc2 {[%emt 0:09:32]} Nb8 {[%emt 0:01:56]} 19. Ne3 {[%emt 0:10:15] Not much happened in this game.   Weighted Error Value: White=0.13 (very precise) /Black=0.06 (flawless) .  Inaccurate:     	White=3     	---        OK:         	White=4     	Black=6} 1/2-1/2

[Event "7th Sharjah Masters 2024"]
[Site "Sharjah"]
[Date "2024.05.15"]
[Round "2.30"]
[White "Zemlyanskii, Ivan"]
[Black "Gledura, Benjamin"]
[Result "1/2-1/2"]
[ECO "B95"]
[WhiteElo "2516"]
[BlackElo "2619"]
[Annotator "TA"]
[PlyCount "146"]
[EventDate "2024.05.13"]
[EventType "swiss"]
[EventCountry "UAE"]
[SourceTitle "playchess.com"]
[Source "ChessBase"]
[SourceQuality "1"]
[TimeControl "5400+30"]

{[%evp 79,146,151,322,328,313,321,349,349,337,345,349,349,349,349,326,73,73,0,0,0,0,0,0,0,0,0,0,0,0,0,0,0,0,0,0,0,0,0,0,0,0,-8,-8,-8,0,-8,-8,-8,0,0,0,-8,-8,-8,0,0,0,0,0,0,0,0,0,-8,-8,-8,-8,-8,-8]} 1. e4 {[%emt 0:00:03]} c5 {[%emt 0:00:09]} 2. Nf3 {[%emt 0:00:06]} d6 {[%emt 0:00:11]} 3. d4 {[%emt 0:00:04]} cxd4 {[%emt 0:00:07]} 4. Nxd4 {[%emt 0:00:04]} Nf6 {[%emt 0:00:09]} 5. Nc3 {[%emt 0:00:04]} a6 {[%emt 0:00:08]} 6. Bg5 {[%emt 0:00:06]} e6 {[%emt 0:00:27]} 7. Qf3 {[%emt 0:00:06]} Nbd7 {[%emt 0:05:38]} 8. O-O-O {[%emt 0:00:16]} Qc7 {[%emt 0:02:56]} 9. Bd3 {[%emt 0:00:06] B95: Sicilian Najdorf: 6 Bg5 e6, unusual White 7th moves.} h6 {[%emt 0:06:43]} 10. Bh4 {[%emt 0:00:11]} Be7 {[%emt 0:07:37]} 11. Rhe1 {[%emt 0:00:05]} Ne5 {[%emt 0:03:40]} 12. Qe2 {[%emt 0:02:42]} g5 {[%emt 0:08:16]} 13. Bg3 {[%emt 0:00:22]} b5 {[%emt 0:01:54]} 14. a3 {[%emt 0:04:13]} Rb8 {[%emt 0:04:36]} 15. h4 {[%emt 0:06:29]} Bd7 $146 {[%emt 0:12:42]} ({Predecessor:} 15... Qc5 16. Nb3 Qb6 17. hxg5 hxg5 18. Rh1 Rf8 19. f3 Bd7 20. Bf2 Qc7 21. Be3 Rg8 {1-0 Bedia,M (2342)-Potrekeev,P (2152) Krasnodar Region-ch 2009 (1)}) 16. hxg5 {[%emt 0:03:59]} hxg5 {[%emt 0:00:02]} 17. Rh1 {[%emt 0:07:03]} Rg8 {[%emt 0:04:26]} 18. f3 {[%emt 0:11:01]} Rc8 {[%emt 0:07:02]} 19. Nb3 {[%emt 0:09:30]} Bc6 {[%emt 0:04:05]} 20. Kb1 {[%emt 0:11:09]} Nfd7 {[%emt 0:01:01]} 21. Rh6 {[%emt 0:05:07]} Ba8 {[%emt 0:07:07]} 22. a4 {[%emt 0:09:04]} bxa4 {[%emt 0:10:30]} 23. Nxa4 {[%emt 0:00:15]} Nc4 {[%emt 0:00:29]} 24. Rdh1 {[%emt 0:08:29]} Qc6 {[%emt 0:02:07]} 25. Rh8 {[%emt 0:02:02]} Rf8 {[%emt 0:00:09]} 26. Nc3 {[%emt 0:09:53]} Nde5 {[%emt 0:00:55]} 27. Bxe5 {[%emt 0:02:24]} dxe5 {[%emt 0:00:06]} 28. Bxc4 {[%emt 0:00:34]} Qxc4 {[%emt 0:00:02]} 29. Rxf8+ {[%emt 0:01:53]} Bxf8 {[%emt 0:00:08]} 30. Qd2 {[%emt 0:00:14]} f6 {[%emt 0:01:45]} 31. Rd1 {[%emt 0:01:40]} Qc7 {[%emt 0:02:10]} 32. Qd3 {[%emt 0:00:36]} Qa7 {[%emt 0:01:22]} 33. Na5 {[%emt 0:02:40]} Kf7 {[%emt 0:03:42]} 34. Qd7+ {[%emt 0:01:00]} Qxd7 {[%emt 0:00:07]} 35. Rxd7+ {[%emt 0:00:03]} Kg6 {[%emt 0:01:24]} 36. Ra7 {[%emt 0:00:05]} Bb4 {[%emt 0:00:45]} 37. Rxa6 {[%emt 0:00:39]} Bxc3 {[%emt 0:00:07]} 38. bxc3 {[%emt 0:00:03]} g4 {[%emt 0:00:56]} 39. c4 {[%emt 0:01:19]} Re8 {[%emt 0:02:33]} 40. c5 {[%emt 0:01:02]} (40. fxg4 Bxe4 $15) 40... gxf3 $2 {[%emt 0:01:23]} (40... Rc8 $16 41. c6 (41. fxg4 Bxe4 42. Nb3 Bd5 $15) (41. Rxe6 Rxc5 42. Nb3 Rc7 $14) 41... gxf3 42. gxf3 f5) 41. gxf3 $18 {[%emt 0:00:01]} f5 {[%emt 0:00:16]} 42. c6 {[%emt 0:01:20]} Rc8 {[%emt 0:00:13]} 43. Nc4 $1 {[%emt 0:02:43]} Kg5 {[%emt 0:01:03]} 44. Nxe5 {[%emt 0:00:43]} fxe4 {[%emt 0:00:38]} 45. fxe4 {[%emt 0:00:53]} Kf4 {[%emt 0:00:12]} 46. Ng6+ $1 {[%emt 0:00:30]} Kxe4 {[%emt 0:00:20] [#]} 47. Ra4+ $2 {[%emt 0:00:37]} (47. Kc1 $1 $18 {and the rest is easy.}) 47... Ke3 $16 {[%emt 0:00:41] [#]} 48. c7 {[%emt 0:00:31]} (48. Ne7 $1 $16 Rc7 49. Rxa8 Rxe7 50. Ra4) 48... Be4 $1 $11 {[%emt 0:00:54]} 49. Ra3+ {[%emt 0:00:29]} Kd2 {[%emt 0:00:26]} 50. Nf4 $1 {[%emt 0:00:29]} Rxc7 {[%emt 0:00:08]} 51. Nxe6 {[%emt 0:00:22]} Rb7+ {[%emt 0:00:19]} 52. Ka1 {[%emt 0:00:21]} Kc1 {[%emt 0:01:05]} 53. Nd4 {[%emt 0:00:40]} Rb1+ {[%emt 0:00:26]} 54. Ka2 {[%emt 0:00:00]} Rb2+ {[%emt 0:00:31]} 55. Ka1 {[%emt 0:00:02]} Rb1+ {[%emt 0:00:05]} (55... Bxc2 56. Ne2+ Kd2 57. Kxb2 $18) 56. Ka2 {[%emt 0:00:01]} Rb2+ {[%emt 0:00:06]} 57. Ka1 {[%emt 0:00:06]} Rb4 {[%emt 0:01:12]} (57... Bxc2 58. Ne2+ Kd2 59. Kxb2 $18) 58. Ne2+ {[%emt 0:01:13]} Kd2 {[%emt 0:00:16]} 59. Nc3 {[%emt 0:01:14]} Bxc2 {[%emt 0:00:16]} 60. Ka2 {[%emt 0:00:49]} Rb7 {[%emt 0:00:56]} 61. Nd5 {[%emt 0:00:41]} Bd3 {[%emt 0:00:36]} 62. Rc3 {[%emt 0:00:28]} Rb5 {[%emt 0:00:39]} 63. Nc7 $1 {[%emt 0:00:28]} Rb4 {[%emt 0:00:31]} 64. Ka3 {[%emt 0:00:14]} Rb7 {[%emt 0:00:19]} 65. Nd5 {[%emt 0:00:31]} Rb5 {[%emt 0:00:32]} 66. Nc7 {[%emt 0:00:10]} Rb1 {[%emt 0:00:27]} 67. Rb3 {[%emt 0:00:37]} Rc1 {[%emt 0:00:16]} 68. Nd5 $1 {[%emt 0:00:31]} Bc4 {[%emt 0:00:37]} 69. Rb2+ {[%emt 0:00:08]} Kd3 {[%emt 0:00:07]} 70. Nb4+ {[%emt 0:00:05]} Kd4 {[%emt 0:00:05]} 71. Rd2+ {[%emt 0:00:18]} Kc3 {[%emt 0:00:19]} 72. Rc2+ {[%emt 0:00:06]} Rxc2 {[%emt 0:00:05]} 73. Nxc2 {[%emt 0:00:03]} Kxc2 {[%emt 0:00:06]} 1/2-1/2